fUST/lending_fUST_20250610
["ID","MTS","AMOUNT","RATE_DAILY","PERIOD"]
[365179671,1749519035018,-1220.62,0.00021369,4]
[365179672,1749519035027,-460.0,0.00021369,4]
[365179673,1749519035037,-500.0,0.00021488,2]
[365179674,1749519035047,-500.0,0.00021488,2]
[365179675,1749519035056,-500.0,0.00021488,2]
[365179676,1749519035067,-500.0,0.00021488,2]
[365179677,1749519035076,-224.52512256,0.00021488,2]
[365179678,1749519035086,-482.21,0.00021643,4]
[365179679,1749519035096,-460.0,0.00021643,4]
[365179680,1749519035105,-460.0,0.00021643,4]
[365179681,1749519035115,-460.0,0.00021643,4]
[365179682,1749519035125,-460.0,0.00021643,4]
[365179683,1749519035135,-460.0,0.00021643,4]
[365179684,1749519035145,-748.1,0.00021643,4]
[365179685,1749519035155,-460.0,0.00021643,4]
[365179686,1749519035165,-460.0,0.00021643,4]
[365179687,1749519035174,-460.0,0.00021643,4]
[365179688,1749519035183,-460.0,0.00021643,4]
[365179689,1749519035193,-460.0,0.00021643,4]
[365179690,1749519035202,-460.0,0.00021643,4]
[365179691,1749519035211,-460.0,0.00021643,4]
[365179692,1749519035221,-2198.25,0.00021643,4]
[365179693,1749519035230,-460.0,0.00021643,2]
[365179694,1749519035240,-460.0,0.00021643,4]
[365179695,1749519035249,-460.0,0.00021643,4]
[365179696,1749519035259,-592.47,0.00021643,4]
[365179697,1749519035268,-399.11,0.00021643,4]
[365179698,1749519035277,-641.65,0.00021643,4]
[365179699,1749519035287,-460.0,0.00021643,4]
[365179700,1749519035296,-460.0,0.00021643,4]
[365179701,1749519035305,-460.0,0.00021643,4]
[365179702,1749519035315,-460.0,0.00021643,4]
[365179703,1749519035325,-769.88,0.00021643,4]
[365179704,1749519035335,-761.28,0.00021643,4]
[365179705,1749519035345,-460.0,0.00021643,4]
[365179706,1749519035355,-735.76,0.00021643,4]
[365179707,1749519035365,-1220.62,0.00021643,4]
[365179708,1749519035374,-460.0,0.00021643,4]
[365179709,1749519035384,-500.0,0.00021676,2]
[365179710,1749519035392,-500.0,0.000217,2]
[365179711,1749519035402,-418.54435608,0.000219,6]
[365179712,1749519035411,-482.21,0.00021917,4]
[365179713,1749519035420,-460.0,0.00021917,4]
[365179714,1749519035430,-460.0,0.00021917,4]
[365179715,1749519035439,-330.0,0.00021917,4]
[365179716,1749519035448,-330.0,0.00021917,4]
[365179717,1749519035457,-460.0,0.00021917,4]
[365179718,1749519035467,-748.1,0.00021917,4]
[365179719,1749519035477,-330.0,0.00021917,4]
[365179720,1749519035486,-460.0,0.00021917,4]
[365179721,1749519035495,-460.0,0.00021917,4]
[365179722,1749519035504,-460.0,0.00021917,4]
[365179723,1749519035513,-460.0,0.00021917,4]
[365179724,1749519035523,-460.0,0.00021917,4]
[365179725,1749519035532,-460.0,0.00021917,4]
[365179726,1749519035541,-2198.25,0.00021917,4]
[365179727,1749519035552,-460.0,0.00021917,2]
[365179728,1749519035561,-330.0,0.00021917,4]
[365179729,1749519035570,-460.0,0.00021917,4]
[365179730,1749519035580,-592.47,0.00021917,4]
[365179731,1749519035589,-641.65,0.00021917,4]
[365179732,1749519035598,-460.0,0.00021917,4]
[365179733,1749519035607,-460.0,0.00021917,4]
[365179734,1749519035617,-460.0,0.00021917,4]
[365179735,1749519035626,-460.0,0.00021917,4]
[365179736,1749519035635,-769.88,0.00021917,4]
[365179737,1749519035644,-761.28,0.00021917,4]
[365179738,1749519035653,-460.0,0.00021917,4]
[365179739,1749519035666,-735.76,0.00021917,4]
[365179740,1749519035675,-1220.62,0.00021917,4]
[365179741,1749519035684,-470.88111514,0.00021917,4]
[365179742,1749519035694,-3206.56978447,0.00022,2]
[365179743,1749519035703,-8809.70243364,0.00022,2]
[365179744,1749519035713,-93427.7638834,0.00022,7]
[365179765,1749519323957,1178.0,0.00024681,60]
[365179766,1749519349692,300.0,0.00017999,2]
[365179768,1749519417631,3384.72062907,0.00018,2]
[365179769,1749519417654,1615.27937093,0.00018,2]
[365179771,1749519433557,5000.0,0.00018,2]
[365179772,1749519441369,187.64985064,0.00018,2]
[365179773,1749519449451,151.64386757,0.00018,2]
[365179780,1749519728566,1671.5711217,0.00018,2]
[365179781,1749519743793,407.96641018,0.00018,2]
[365179782,1749519760111,1651.31489352,0.00018,2]
[365179785,1749519782253,300.0,0.00017999,2]
[365179786,1749519791147,6964.87704308,0.00024681,120]
[365179788,1749519804489,5000.0,0.0001805,6]
[365179794,1749519889640,236.08003517,0.0001746,2]
[365179796,1749519921557,172.83193,0.00013699,2]
[365179809,1749520215032,532.0,0.00024658,120]
[365179835,1749520232336,-407.96641018,0.00018,2]
[365179841,1749520232391,-1467.8064897,0.00018,2]
[365179847,1749520232447,-1246.45891054,0.00018,2]
[365179849,1749520232459,-427.45009496,0.00018,2]
[365179876,1749520238353,-1000.9999859,0.00018,2]
[365179877,1749520238366,-18198.25939913,0.00018,2]
[365179878,1749520238408,-581.81528727,0.00018,2]
[365179879,1749520238420,-798.52629353,0.00018,2]
[365179880,1749520238432,-870.71712879,0.00018,2]
[365179881,1749520238442,-174.1839207,0.00020043,2]
[365179882,1749520238452,-192.1273144,0.00020277,2]
[365179883,1749520238462,-638.28,0.00020304,2]
[365179885,1749520238472,-212.78912818,0.00020822,3]
[365179886,1749520238482,-506.65379253,0.000209,4]
[365179887,1749520238492,-582.2072538,0.000209,2]
[365179888,1749520238501,-186.19849852,0.00021038,2]
[365179889,1749520238511,-506.65379245,0.00021038,4]
[365179890,1749520238520,-500.0,0.00021094,2]
[365179891,1749520238529,-500.0,0.00021094,2]
[365179892,1749520238544,-421.5996801,0.00021094,2]
[365179893,1749520238554,-500.0,0.00021094,2]
[365179894,1749520238565,-515.81997098,0.00021094,2]
[365179895,1749520238575,-500.0,0.00021094,2]
[365179896,1749520238584,-327.17423752,0.00021094,2]
[365179897,1749520238596,-172.82576248,0.00021094,2]
[365179898,1749520238606,-313.38034712,0.00021094,2]
[365179899,1749520238617,-163.840187,0.00021094,2]
[365179900,1749520238626,-443.09907296,0.00021095,4]
[365179901,1749520238635,-446.60295688,0.00021095,4]
[365179902,1749520238645,-442.05254602,0.00021095,4]
[365179903,1749520238655,-441.33469059,0.00021095,4]
[365179904,1749520238664,-444.15063235,0.00021095,4]
[365179905,1749520238673,-448.4848997,0.00021095,4]
[365179906,1749520238683,-429.30744093,0.00021095,4]
[365179907,1749520238692,-238.23525621,0.00021095,4]
[365179908,1749520238702,-460.0,0.00021095,4]
[365179909,1749520238712,-452.32726583,0.00021095,4]
[365179910,1749520238723,-442.50372634,0.00021095,4]
[365179911,1749520238732,-21.57198493,0.00021095,4]
[365179912,1749520238745,-438.42801507,0.00021095,4]
[365179913,1749520238754,-460.0,0.00021095,4]
[365179914,1749520238763,-460.0,0.00021095,4]
[365179915,1749520238772,-460.0,0.00021095,4]
[365179916,1749520238782,-460.0,0.00021095,4]
[365179917,1749520238791,-97.67197493,0.00021095,4]
[365179958,1749520246678,-362.32802507,0.00021095,4]
[365179959,1749520246687,-460.0,0.00021095,4]
[365179960,1749520246697,-460.0,0.00021095,4]
[365179961,1749520246706,-460.0,0.00021095,4]
[365179963,1749520246715,-460.0,0.00021095,4]
[365179964,1749520246725,-441.16916841,0.00021095,4]
[365179965,1749520246734,-500.0,0.00021095,4]
[365179966,1749520246743,-618.1790528,0.00021095,4]
[365179967,1749520246752,-460.0,0.00021095,4]
[365179968,1749520246762,-460.0,0.00021095,4]
[365179969,1749520246772,-421.00729113,0.00021095,4]
[365179970,1749520246781,-441.14755023,0.00021095,4]
[365179971,1749520246790,-460.0,0.00021095,4]
[365179972,1749520246800,-460.0,0.00021095,4]
[365179973,1749520246809,-460.0,0.00021095,4]
[365179974,1749520246819,-460.0,0.00021095,4]
[365179975,1749520246828,-432.49140143,0.00021095,4]
[365179976,1749520246838,-442.1576108,0.00021095,4]
[365179977,1749520246847,-443.59523203,0.00021095,4]
[365179978,1749520246856,-440.65273591,0.00021095,4]
[365179979,1749520246866,-420.96083321,0.00021095,4]
[365179980,1749520246875,-441.40405767,0.00021095,4]
[365179981,1749520246885,-440.50467736,0.00021095,4]
[365179982,1749520246894,-460.0,0.00021095,4]
[365179983,1749520246903,-460.0,0.00021095,4]
[365179984,1749520246912,-443.07524411,0.00021095,4]
[365179985,1749520246921,-194.76858604,0.00021095,4]
[365180014,1749520842316,1046.75188886,0.00024683,60]
[365180019,1749520929677,176.163631,0.00013699,2]
[365180022,1749521034409,1300.0,0.00024658,120]
[365180028,1749521127051,305.67068,0.00024683,120]
[365180095,1749521432570,-5000.0,0.00019111,6]
[365180098,1749521432581,-182.2495095,0.00019551,2]
[365180100,1749521432592,-301.8352621,0.00019869,2]
[365180102,1749521432601,-472.87687305,0.000199,2]
[365180104,1749521432612,-1688.0028066,0.0001993,2]
[365180106,1749521432622,-194.9729954,0.00019999,2]
[365180108,1749521432632,-1200.0,0.00020071,2]
[365180110,1749521432642,-472.87687295,0.00020072,2]
[365180112,1749521432652,-160.0,0.000201,2]
[365180114,1749521432662,-472.87687295,0.00020245,2]
[365180116,1749521432671,-658.57,0.00020321,2]
[365180118,1749521432682,-300.0,0.00020416,2]
[365180120,1749521432692,-300.0,0.00020416,2]
[365180122,1749521432701,-472.87687295,0.00020417,3]
[365180124,1749521432711,-472.87687295,0.0002059,3]
[365180126,1749521432720,-472.87687295,0.00020762,3]
[365180128,1749521432731,-472.87687295,0.00020934,4]
[365180130,1749521432740,-207.4,0.0002106,2]
[365180132,1749521432750,-855.5864699,0.00021073,2]
[365180134,1749521432759,-503.80456573,0.00021073,2]
[365180136,1749521432769,-504.91224436,0.00021073,2]
[365180138,1749521432778,-631.68541145,0.00021073,2]
[365180140,1749521432788,-500.42929681,0.00021073,2]
[365180142,1749521432797,-300.0,0.0002109,2]
[365180144,1749521432807,-161.69471441,0.00021094,2]
[365180145,1749521432816,-460.0,0.00021095,4]
[365180147,1749521432826,-220.78875742,0.00021095,4]
[365180149,1749521432836,-460.0,0.00021095,4]
[365180151,1749521432846,-435.98773689,0.00021095,4]
[365180153,1749521432855,-460.0,0.00021095,4]
[365180155,1749521432867,-460.0,0.00021095,4]
[365180157,1749521432876,-460.0,0.00021095,4]
[365180159,1749521432886,-460.0,0.00021095,4]
[365180161,1749521432895,-525.75411091,0.00021095,4]
[365180163,1749521432905,-441.38031523,0.00021095,4]
[365180183,1749521433084,-460.0,0.00021095,4]
[365180186,1749521433098,-429.1384709,0.00021095,4]
[365180188,1749521433109,-430.66719768,0.00021095,4]
[365180190,1749521433120,-460.0,0.00021095,4]
[365180192,1749521433131,-376.37623835,0.00021095,4]
[365180194,1749521433141,-460.0,0.00021095,4]
[365180196,1749521433151,-446.80107923,0.00021095,4]
[365180198,1749521433161,-460.0,0.00021095,4]
[365180200,1749521433171,-346.09555756,0.00021095,4]
[365180202,1749521433181,-460.0,0.00021095,4]
[365180204,1749521433192,-250.68856227,0.00021095,4]
[365180206,1749521433203,-434.38511791,0.00021095,4]
[365180208,1749521433219,-425.46723787,0.00021095,4]
[365180210,1749521433229,-443.67260528,0.00021095,4]
[365180212,1749521433239,-460.0,0.00021095,4]
[365180214,1749521433249,-399.74725963,0.00021095,4]
[365180216,1749521433259,-446.94978684,0.00021095,4]
[365180218,1749521433268,-457.2389027,0.00021095,4]
[365180220,1749521433278,-452.29346793,0.00021095,4]
[365180222,1749521433288,-460.0,0.00021095,4]
[365180224,1749521433297,-460.0,0.00021095,4]
[365180226,1749521433307,-216.59446545,0.00021095,4]
[365180228,1749521433316,-438.27619124,0.00021095,4]
[365180230,1749521433326,-460.0,0.00021095,4]
[365180232,1749521433336,-448.89144687,0.00021095,4]
[365180234,1749521433346,-426.33639918,0.00021095,4]
[365180236,1749521433358,-452.79059425,0.00021095,4]
[365180238,1749521433368,-460.0,0.00021095,4]
[365180240,1749521433379,-434.34810082,0.00021095,4]
[365180242,1749521433389,-445.36388054,0.00021095,4]
[365180244,1749521433400,-447.08074469,0.00021095,4]
[365180246,1749521433409,-452.8380322,0.00021095,4]
[365180248,1749521433419,-262.30954105,0.00021095,4]
[365180250,1749521433429,-448.86369648,0.00021095,4]
[365180252,1749521433440,-460.0,0.00021095,4]
[365180254,1749521433450,-437.31858885,0.00021095,4]
[365180256,1749521433460,-442.34589276,0.00021095,4]
[365180258,1749521433471,-442.42411131,0.00021095,4]
[365180260,1749521433481,-424.99634785,0.00021095,4]
[365180262,1749521433495,-449.18182098,0.00021095,4]
[365180264,1749521433505,-441.53546709,0.00021095,4]
[365180266,1749521433516,-447.2184958,0.00021095,4]
[365180268,1749521433526,-441.32886641,0.00021095,4]
[365180270,1749521433536,-445.08712646,0.00021095,4]
[365180272,1749521433546,-456.17050163,0.00021095,4]
[365180273,1749521433556,-454.29137975,0.00021095,4]
[365180275,1749521433568,-450.21504718,0.00021095,4]
[365180277,1749521433581,-449.56930055,0.00021095,4]
[365180280,1749521433597,-4.15215292,0.00021095,4]
[365180282,1749521433609,-456.82178278,0.00021095,4]
[365180284,1749521433619,-459.22080475,0.00021095,4]
[365180286,1749521433630,-417.54509626,0.00021095,4]
[365180287,1749521433640,-422.05233223,0.00021095,4]
[365180290,1749521433654,-42.67959636,0.00021095,4]
[365180292,1749521433664,-156.94498679,0.00021095,4]
[365180294,1749521433675,-441.6840163,0.00021095,4]
[365180296,1749521433685,-460.0,0.00021095,4]
[365180298,1749521433695,-428.0433957,0.00021095,4]
[365180300,1749521433705,-460.0,0.00021095,4]
[365180302,1749521433714,-123.47091011,0.00021095,4]
[365180304,1749521433727,-336.52908989,0.00021095,4]
[365180306,1749521433738,-460.0,0.00021095,4]
[365180308,1749521433748,-449.1575036,0.00021095,4]
[365180310,1749521433759,-397.45586291,0.00021095,4]
[365180312,1749521433769,-460.0,0.00021095,4]
[365180314,1749521433779,-434.69094118,0.00021095,4]
[365180316,1749521433788,-460.0,0.00021095,4]
[365180318,1749521433798,-283.55639312,0.00021095,4]
[365180758,1749521438598,-154.03823025,0.00021095,4]
[365180760,1749521438608,-460.0,0.00021095,4]
[365180762,1749521438619,-264.58286502,0.00021095,4]
[365181039,1749521441217,-371.31075422,0.00020884,6]
[365181265,1749521443791,-4628.68924578,0.00020884,6]
[365181267,1749521443801,-235.41713498,0.00021095,4]
[365181269,1749521443811,-401.47787572,0.00021095,4]
[365181271,1749521443821,-460.0,0.00021095,4]
[365181273,1749521443830,-460.0,0.00021095,4]
[365181275,1749521443840,-460.0,0.00021095,4]
[365181277,1749521443849,-435.54111596,0.00021095,4]
[365181279,1749521443859,-435.89343316,0.00021095,4]
[365181281,1749521443868,-460.0,0.00021095,4]
[365181283,1749521443878,-460.0,0.00021095,4]
[365181286,1749521443887,-453.34014735,0.00021095,4]
[365181289,1749521443897,-460.0,0.00021095,4]
[365181291,1749521443907,-448.9374528,0.00021095,4]
[365181293,1749521443916,-258.40859695,0.00021095,4]
[365181295,1749521443926,-460.0,0.00021095,4]
[365181297,1749521443935,-436.48244982,0.00021095,4]
[365181299,1749521443945,-460.0,0.00021095,4]
[365181301,1749521443955,-460.0,0.00021095,4]
[365181303,1749521443965,-460.0,0.00021095,4]
[365181305,1749521443975,-437.61645868,0.00021095,4]
[365181307,1749521443985,-460.0,0.00021095,4]
[365181309,1749521443994,-500.0,0.00021095,4]
[365181311,1749521444003,-572.45554073,0.00021095,4]
[365181313,1749521444013,-464.05847034,0.00021095,4]
[365181315,1749521444023,-460.0,0.00021095,4]
[365181317,1749521444033,-460.0,0.00021095,4]
[365181319,1749521444042,-460.0,0.00021095,4]
[365181321,1749521444053,-460.0,0.00021095,4]
[365181323,1749521444062,-460.0,0.00021095,4]
[365181325,1749521444071,-377.70461231,0.00021095,4]
[365181327,1749521444081,-446.55949798,0.00021095,4]
[365181329,1749521444090,-447.4127221,0.00021095,4]
[365181331,1749521444099,-442.30753409,0.00021095,4]
[365181333,1749521444109,-445.30491376,0.00021095,4]
[365181335,1749521444119,-404.60966168,0.00021095,4]
[365181337,1749521444127,-460.0,0.00021095,4]
[365181339,1749521444137,-460.0,0.00021095,4]
[365181341,1749521444146,-450.25537887,0.00021095,4]
[365181343,1749521444155,-151.587511,0.00021095,2]
[365181344,1749521444165,-335.96365639,0.00021095,4]
[365181346,1749521444174,-442.69244406,0.00021095,4]
[365181348,1749521444183,-444.88852631,0.00021095,4]
[365181350,1749521444193,-152.037887,0.00021095,2]
[365181352,1749521444204,-431.66326963,0.00021095,4]
[365181354,1749521444214,-460.0,0.00021095,4]
[365181356,1749521444224,-452.22874961,0.00021095,4]
[365181358,1749521444233,-430.93164465,0.00021095,4]
[365181360,1749521444243,-345.30734373,0.00021095,4]
[365181362,1749521444253,-444.73742873,0.00021095,4]
[365181364,1749521444263,-460.0,0.00021095,4]
[365181366,1749521444272,-443.94621708,0.00021095,4]
[365181368,1749521444282,-366.80805089,0.00021095,4]
[365181370,1749521444291,-444.58405627,0.00021095,4]
[365181372,1749521444301,-460.0,0.00021095,4]
[365181374,1749521444311,-331.62640606,0.00021095,4]
[365181376,1749521444321,-445.78870202,0.00021095,4]
[365181378,1749521444331,-421.48404406,0.00021095,4]
[365181380,1749521444340,-431.42247652,0.00021095,4]
[365181382,1749521444350,-460.0,0.00021095,4]
[365181384,1749521444360,-659.36,0.00021095,4]
[365181386,1749521444370,-425.12664322,0.00021095,4]
[365181388,1749521444379,-416.70729314,0.00021095,4]
[365181390,1749521444388,-470.11059597,0.00021095,4]
[365181391,1749521444397,-441.63484758,0.00021095,4]
[365181393,1749521444407,-475.01099967,0.00021095,4]
[365181395,1749521444416,-471.2846431,0.00021095,4]
[365181397,1749521444426,-422.74502465,0.00021095,4]
[365181399,1749521444435,-474.47596293,0.00021095,4]
[365181401,1749521444445,-460.0,0.00021095,4]
[365181403,1749521444454,-422.31280229,0.00021095,4]
[365181405,1749521444464,-423.35977528,0.00021095,4]
[365181407,1749521444474,-425.42047531,0.00021095,4]
[365181409,1749521444483,-422.14980795,0.00021095,4]
[365181411,1749521444495,-325.20686427,0.00021095,4]
[365181413,1749521444505,-460.0,0.00021095,4]
[365181415,1749521444514,-460.0,0.00021095,4]
[365181417,1749521444524,-423.19377882,0.00021095,4]
[365181419,1749521444535,-421.52936995,0.00021095,4]
[365181421,1749521444544,-460.0,0.00021095,4]
[365181423,1749521444554,-424.68786994,0.00021095,4]
[365181425,1749521444565,-423.08311991,0.00021095,4]
[365181426,1749521444575,-460.0,0.00021095,4]
[365181428,1749521444584,-417.33241239,0.00021095,4]
[365181430,1749521444593,-463.77266513,0.00021095,4]
[365181432,1749521444603,-391.01023349,0.00021095,4]
[365181434,1749521444612,-460.0,0.00021095,4]
[365181436,1749521444622,-460.0,0.00021095,4]
[365181438,1749521444631,-412.93394844,0.00021095,4]
[365181440,1749521444641,-460.0,0.00021095,4]
[365181441,1749521444651,-283.846259,0.00021095,2]
[365181443,1749521444660,-460.0,0.00021095,4]
[365181445,1749521444669,-413.38018343,0.00021095,4]
[365181447,1749521444679,-413.5930201,0.00021095,4]
[365181449,1749521444688,-442.93766099,0.00021095,4]
[365181451,1749521444698,-460.0,0.00021095,4]
[365181453,1749521444707,-460.68504251,0.00021095,4]
[365181455,1749521444716,-226.26764424,0.00021095,4]
[365181457,1749521444726,-462.3433694,0.00021095,4]
[365181459,1749521444736,-460.0,0.00021095,4]
[365181461,1749521444745,-151.0,0.00021095,2]
[365181463,1749521444755,-151.0,0.00021095,2]
[365181465,1749521444764,-431.98966949,0.00021095,4]
[365181467,1749521444773,-443.9378128,0.00021095,4]
[365181469,1749521444782,-444.3327218,0.00021095,4]
[365181471,1749521444792,-447.07794018,0.00021095,4]
[365181473,1749521444801,-460.0,0.00021095,4]
[365181475,1749521444811,-350.2071307,0.00021095,4]
[365181477,1749521444821,-460.0,0.00021095,4]
[365181479,1749521444830,-444.60947475,0.00021095,4]
[365181481,1749521444840,-350.0,0.00021095,2]
[365181483,1749521444851,-450.66126358,0.00021095,4]
[365181485,1749521444860,-460.0,0.00021095,4]
[365181487,1749521444870,-445.74143043,0.00021095,4]
[365181489,1749521444879,-330.00542589,0.00021095,4]
[365181491,1749521444888,-460.0,0.00021095,4]
[365181493,1749521444898,-443.64619866,0.00021095,4]
[365181495,1749521444914,-460.0,0.00021095,4]
[365181497,1749521444931,-440.0,0.00021095,4]
[365181499,1749521444947,-394.64074395,0.00021095,4]
[365181501,1749521444961,-545.13439054,0.00021095,4]
[365181503,1749521444970,-438.04500064,0.00021095,4]
[365181505,1749521444980,-460.0,0.00021095,4]
[365181507,1749521444989,-441.92035203,0.00021095,4]
[365181509,1749521444998,-2093.86,0.00021095,4]
[365181511,1749521445008,-440.79163148,0.00021095,4]
[365181512,1749521445017,-460.0,0.00021095,4]
[365181514,1749521445027,-460.0,0.00021095,4]
[365181516,1749521445038,-205.25689992,0.00021095,4]
[365181518,1749521445048,-593.54,0.00021095,4]
[365181520,1749521445058,-440.52891196,0.00021095,4]
[365181522,1749521445068,-455.01447795,0.00021095,4]
[365181524,1749521445078,-444.51724132,0.00021095,4]
[365181526,1749521445088,-452.22275912,0.00021095,4]
[365181528,1749521445097,-612.09,0.00021095,4]
[365181530,1749521445107,-444.59224069,0.00021095,4]
[365181532,1749521445116,-460.0,0.00021095,4]
[365181534,1749521445126,-460.0,0.00021095,4]
[365181536,1749521445135,-530.70388858,0.00021095,4]
[365181538,1749521445145,-460.0,0.00021095,4]
[365181540,1749521445155,-460.0,0.00021095,4]
[365181542,1749521445164,-460.0,0.00021095,4]
[365181544,1749521445173,-441.53573177,0.00021095,4]
[365181552,1749521445291,-460.0,0.00021095,4]
[365181553,1749521445302,-460.0,0.00021095,4]
[365181554,1749521445313,-460.0,0.00021095,4]
[365181555,1749521445323,-600.0,0.00021095,2]
[365181556,1749521445333,-397.41074681,0.00021095,4]
[365181557,1749521445343,-448.2435217,0.00021095,4]
[365181558,1749521445353,-433.46974533,0.00021095,4]
[365181559,1749521445362,-446.27183175,0.00021095,4]
[365181560,1749521445372,-431.898775,0.00021095,4]
[365181561,1749521445382,-460.0,0.00021095,4]
[365181562,1749521445391,-451.64724669,0.00021095,4]
[365181563,1749521445401,-409.23338982,0.00021095,4]
[365181564,1749521445411,-460.0,0.00021095,4]
[365181565,1749521445420,-467.53244439,0.00021095,4]
[365181566,1749521445430,-403.7726186,0.00021095,4]
[365181567,1749521445439,-764.77,0.00021095,4]
[365181568,1749521445448,-434.01989935,0.00021095,4]
[365181569,1749521445459,-1127.19,0.00021095,4]
[365181570,1749521445468,-548.39554024,0.00021095,4]
[365181572,1749521445478,-435.23553887,0.00021095,4]
[365181574,1749521445488,-450.35094839,0.00021095,4]
[365181576,1749521445500,-779.64,0.00021095,4]
[365181578,1749521445510,-451.94548017,0.00021095,4]
[365181580,1749521445519,-741.47,0.00021095,4]
[365181582,1749521445529,-431.43432916,0.00021095,4]
[365181584,1749521445539,-196.01812881,0.00021095,4]
[365181586,1749521445548,-431.68513471,0.00021095,4]
[365181588,1749521445557,-384.6662061,0.00021095,4]
[365181590,1749521445569,-430.79743829,0.00021095,4]
[365181592,1749521445578,-387.44259085,0.00021095,4]
[365181594,1749521445588,-460.0,0.00021095,4]
[365181596,1749521445597,-325.49271411,0.00021095,4]
[365181598,1749521445606,-457.29015729,0.00021095,4]
[365181600,1749521445616,-460.0,0.00021095,4]
[365181602,1749521445626,-460.0,0.00021095,4]
[365181604,1749521445635,-460.0,0.00021095,4]
[365181606,1749521445645,-578.06,0.000211,2]
[365181608,1749521445653,-472.87687295,0.00021107,4]
[365181610,1749521445663,-291.47132495,0.00021124,2]
[365181612,1749521445673,-397.69405856,0.00021244,2]
[365181614,1749521445682,-315.95438534,0.00021268,2]
[365181616,1749521445691,-472.87687295,0.00021279,5]
[365181618,1749521445700,-1317.13,0.00021288,2]
[365181620,1749521445710,-515.40572421,0.000213,2]
[365181622,1749521445719,-501.23081117,0.00021304,2]
[365181624,1749521445728,-511.62084524,0.00021317,2]
[365181626,1749521445738,-500.0,0.00021317,2]
[365181628,1749521445747,-2029.35,0.00021358,3]
[365181630,1749521445757,-1014.68,0.00021358,3]
[365181632,1749521445767,-507.34,0.00021358,3]
[365181634,1749521445777,-253.67,0.00021358,3]
[365181636,1749521445786,-761.03,0.00021358,3]
[365181638,1749521445796,-287.8171405,0.00021368,2]
[365181640,1749521445805,-500.0,0.00021368,2]
[365181642,1749521445815,-500.0,0.00021368,2]
[365181644,1749521445824,-500.0,0.00021368,2]
[365181646,1749521445834,-500.0,0.00021368,2]
[365181648,1749521445843,-310.74811945,0.00021368,2]
[365181650,1749521445853,-500.0,0.00021368,2]
[365181652,1749521445863,-500.0,0.00021368,2]
[365181654,1749521445873,-500.0,0.00021368,2]
[365181656,1749521445882,-500.0,0.00021368,2]
[365181658,1749521445892,-379.15052262,0.00021368,2]
[365181660,1749521445901,-258.31008431,0.00021368,2]
[365181662,1749521445911,-500.0,0.00021368,2]
[365181664,1749521445920,-500.0,0.00021368,2]
[365181666,1749521445929,-500.0,0.00021368,2]
[365181668,1749521445939,-500.0,0.00021368,2]
[365181670,1749521445948,-500.0,0.00021368,2]
[365181672,1749521445958,-358.40080494,0.00021368,2]
[365181674,1749521445967,-402.10585388,0.00021368,2]
[365181675,1749521445977,-158.74692532,0.00021368,2]
[365181677,1749521445986,-507.74056746,0.00021368,2]
[365181680,1749521445995,-500.0,0.00021368,2]
[365181682,1749521446005,-500.0,0.00021368,2]
[365181684,1749521446015,-500.0,0.00021368,2]
[365181686,1749521446024,-500.0,0.00021368,2]
[365181688,1749521446033,-513.16508976,0.00021368,2]
[365181690,1749521446042,-500.0,0.00021368,2]
[365181693,1749521446052,-500.0,0.00021368,2]
[365181695,1749521446062,-500.0,0.00021368,2]
[365181697,1749521446071,-500.0,0.00021368,2]
[365181699,1749521446080,-578.53453461,0.00021368,2]
[365181701,1749521446089,-500.0,0.00021368,2]
[365181703,1749521446099,-500.0,0.00021368,2]